Cogmind - Beta 9.6 @@@ ROGUE MODE // 2020.07.04 @ 20:01:03 Player: Mr.Manatee Result: Self-destructed Performance ------------- Evolutions (2) 1000 Regions Visited (6) 1200 Robots Destroyed (8) 40 Value Destroyed (126) 126 Prototype IDs (4) 80 Alien Tech Used (0) 0 Bonus (257) 257 TOTAL SCORE: 2703 Bonus ------- Follower Combat Kills 57 Entered Garrisons 200 Cogmind --------- Core Integrity 394/550 Matter 250/300 Energy 2/100 System Corruption 0% Temperature Cool (0) Movement Flying (32) Location -8/Garrison Parts ------- > --- POWER (1) -------- (None) > --- PROPULSION (4) --- Improved Flight Unit Improved Flight Unit > --- UTILITY (4) ------ Improved Heat Sink Small Storage Unit > --- WEAPON (2) ------- (None) > --- INVENTORY (6) ---- Improved Flight Unit Improved Flight Unit Advanced Signal Interpreter Improved ECM Suite Core Shielding Improved Propulsion Shielding Peak State ------------ > --- POWER ------------ Ion Engine > --- PROPULSION ------- Improved Flight Unit Improved Flight Unit > --- UTILITY ---------- Improved Heat Sink Small Storage Unit Improved ECM Suite Improved ECM Suite > --- WEAPON ----------- Light Assault Rifle Mining Laser > --- INVENTORY -------- Improved Flight Unit Improved Flight Unit Large Storage Unit Advanced Signal Interpreter Improved Propulsion Shielding Heavy EM Pulse Gun [Rating: 20] Favorites ----------- Power Ion Engine Engine Ion Engine Propulsion Aluminum Leg Treads Light Treads Leg Aluminum Leg Flight Unit Improved Flight Unit Utility Small Storage Unit Device Heat Sink Storage Small Storage Unit Processor Visual Processing Unit Protection Core Shielding Weapon EM Pulse Gun Energy Gun EM Pulse Gun Ballistic Gun Light Assault Rifle Special Weapon Mining Laser Build | -11 -10 -10 -9 -9 -8 -8 ------- Run | Scr Mat Min Mat Min Mat Gar Slots Evolved 4 | . . . 2 . 2 . Power . | . . . . . . . Propulsion 2 | . . . . . 2 . Utility 2 | . . . 2 . . . Weapon . | . . . . . . . Parts Attached 30 | 7 2 . 10 5 6 . Power 2 | 1 . . . 1 . . Engine 2 | 1 . . . 1 . . Core . | . . . . . . . Reactor . | . . . . . . . Propulsion 8 | 2 2 . 3 . 1 . Treads 2 | 2 . . . . . . Leg 3 | . 2 . 1 . . . Wheel . | . . . . . . . Hover . | . . . . . . . Flight 3 | . . . 2 . 1 . Utility 13 | 1 . . 6 1 5 . Device 6 | . . . 3 . 3 . Storage 1 | 1 . . . . . . Processor 4 | . . . 3 1 . . Hackware . | . . . . . . . Protection 2 | . . . . . 2 . Artifact . | . . . . . . . Weapon 7 | 3 . . 1 3 . . Energy Gun 4 | 2 . . 1 1 . . Energy Cannon . | . . . . . . . Ballistic Gun 2 | 1 . . . 1 . . Ballistic Cannon . | . . . . . . . Launcher . | . . . . . . . Special Weapon 1 | . . . . 1 . . Impact Weapon . | . . . . . . . Slashing Weapon . | . . . . . . . Piercing Weapon . | . . . . . . . Special Melee Weapon . | . . . . . . . Unidentified Prototypes 1 | . . . 1 . . . Parts Lost 4 | . . . . 1 1 2 Power 1 | . . . . . . 1 Propulsion . | . . . . . . . Utility . | . . . . . . . Weapon 3 | . . . . 1 1 1 Highest Loss Streak 2 | . . . . 1 1 2 Average Slot Usage (%) 82 | . 85 85 85 90 67 46 Engine 11 | . 14 14 11 11 9 5 Treads 1 | . 7 . . . . . Leg 18 | . 20 28 20 . . . Flight 4 | . . . 1 22 18 18 Device 7 | . . . 16 11 9 9 Storage 12 | . 14 14 11 11 9 9 Processor 2 | . . . 2 22 6 . Energy Gun 21 | . 28 28 22 9 . . Ballistic Gun 1 | . . . . 2 9 4 Naked Turns . | . . . . . . . Heaviest Build 17 | 13 13 13 17 15 16 11 Greatest Support 40 | 40 40 20 20 12 12 12 Greatest Overweight (x) 2 | 2 . . 2 1 1 . Average Overweight (x) . | . . . . . . . Largest Inventory Capacity 6 | 6 6 6 6 6 6 6 Average Capacity 5 | 5 6 6 6 6 6 6 Most Carried 6 | 6 6 5 6 6 6 6 Average Carried 5 | 3 5 5 5 5 5 6 Final Capacity 6 | 6 6 6 6 6 6 6 Final Carried 6 | 6 5 5 6 5 6 6 Class Distribution -------------------- 78% | Mutant 21% | Sprinter Dominant Class ---------------- Mutant | -10/Materials Mutant | -10/Mines Mutant | -9/Materials Sprinter | -9/Mines Sprinter | -8/Materials Sprinter | -8/Garrison Resources | -11 -10 -10 -9 -9 -8 -8 ----------- Run | Scr Mat Min Mat Min Mat Gar Matter Collected 435 | 192 . 98 67 78 . . Remotely . | . . . . . . . Salvage Created 334 | . 60 . 214 . 60 . Parts 25 | . 1 . 18 . 6 . Haulers Intercepted 3 | . 1 . 2 . . . Recyclers Shooed . | . . . . . . . Parts Field Recycled . | . . . . . . . Retrieved Matter . | . . . . . . . Parts Self-Destructed . | . . . . . . . Prevented . | . . . . . . . Kills | -11 -10 -10 -9 -9 -8 -8 ------- Run | Scr Mat Min Mat Min Mat Gar Combat Hostiles Destroyed 5 | . . . 4 . 1 . Guns 5 | . . . 4 . 1 . Classes Destroyed 3 | . 1 . 2 . . . Hauler 3 | . 1 . 2 . . . Swarmer 3 | . . . 3 . . . Sentry 2 | . . . 1 . 1 . Best Kill Streak 4 | . 1 . 4 . 1 . Combat Bots Only 3 | . . . 3 . 1 . Max Kills in Single Turn 1 | . 1 . 1 . 1 . Gunslinging . | . . . . . . . Exploded . | . . . . . . . Melee . | . . . . . . . Uniques/NPCs Destroyed . | . . . . . . . Combat | -11 -10 -10 -9 -9 -8 -8 -------- Run | Scr Mat Min Mat Min Mat Gar Damage Taken 589 | . . . 137 31 89 332 Core 191 | . . . 35 . 14 142 Absorbed by Shields . | . . . . . . . Core Remaining (%) 97 | 100 . 100 . 91 . . Volleys Fired 30 | . 8 1 14 2 5 . Largest 2 | . 2 2 2 1 1 . Hottest 85 | . 80 80 85 40 20 . Shots Fired 53 | . 16 2 28 2 5 . Gun 53 | . 16 2 28 2 5 . Cannon . | . . . . . . . Launcher . | . . . . . . . Special . | . . . . . . . Kinetic 5 | . . . . . 5 . Thermal . | . . . . . . . Explosive . | . . . . . . . Electromagnetic 48 | . 16 2 28 2 . . Robot Hit Streak 11 | . 5 1 8 6 11 . Robot Miss Streak 6 | . 5 6 3 . . . Penetration Max . | . . . . . . . Secondary Targets . | . . . . . . . Shots Hit Robots 32 | . 7 1 17 2 5 . Core Hits 13 | . 2 . 7 1 3 . Critical Hits . | . . . . . . . Critical Kills . | . . . . . . . Critical Parts Destroyed . | . . . . . . . Melee Attacks . | . . . . . . . Impact . | . . . . . . . Slashing . | . . . . . . . Piercing . | . . . . . . . Sneak Attacks . | . . . . . . . Combat Hostiles . | . . . . . . . Follow-up Attacks . | . . . . . . . Damage Inflicted 372 | . 98 . 210 22 42 . Guns 372 | . 98 . 210 22 42 . Cannons . | . . . . . . . Explosions . | . . . . . . . Melee . | . . . . . . . Ramming . | . . . . . . . Kinetic 42 | . . . . . 42 . Thermal . | . . . . . . . Explosive . | . . . . . . . Electromagnetic 330 | . 98 . 210 22 . . Impact . | . . . . . . . Slashing . | . . . . . . . Piercing . | . . . . . . . Highest Corruption . | . . . . . . . Average Corruption . | . . . . . . . Corruption Purged . | . . . . . . . Overload Shots . | . . . . . . . Overflow Damage . | . . . . . . . Projectiles . | . . . . . . . Explosions . | . . . . . . . Melee . | . . . . . . . Knockbacks . | . . . . . . . Impact . | . . . . . . . Kinetic . | . . . . . . . Secondary . | . . . . . . . Self-Inflicted Damage . | . . . . . . . Shots . | . . . . . . . Rammed . | . . . . . . . Targets Rammed . | . . . . . . . Kicked . | . . . . . . . Crushed . | . . . . . . . Highest Temperature 54 | . 54 18 6 . . 4 Average Temperature 18 | . 21 12 4 . . 4 Received Heat Transfer 177 | . . . 15 . 27 135 Siege Activations . | . . . . . . . Robots Corrupted . | . . . . . . . Combat Hostiles . | . . . . . . . Parts Fried 2 | . 1 . 1 . . . Impact Corruptions . | . . . . . . . Robots Melted . | . . . . . . . Combat Hostiles . | . . . . . . . Parts Melted . | . . . . . . . Heat Transferred . | . . . . . . . Parts Sabotaged . | . . . . . . . Parts Stolen . | . . . . . . . Parts Stripped . | . . . . . . . Power Chain Reactions . | . . . . . . . Missiles Intercepted . | . . . . . . . Alert | -11 -10 -10 -9 -9 -8 -8 ------- Run | Scr Mat Min Mat Min Mat Gar Peak Influence 131 | . 56 21 131 66 107 99 Average Influence 33 | . 19 21 46 52 47 68 Maximum Alert Level . | . . . . . . . Low Security (%) 100 | 100 100 100 100 100 100 100 Level 1 . | . . . . . . . Level 2 . | . . . . . . . Level 3 . | . . . . . . . Level 4 . | . . . . . . . Level 5 . | . . . . . . . High Security . | . . . . . . . Max Security . | . . . . . . . Squads Dispatched 2 | . . . 2 . . . Investigation 1 | . . . 1 . . . Extermination . | . . . . . . . Reinforcement 1 | . . . 1 . . . Assault . | . . . . . . . Garrison . | . . . . . . . Intercept . | . . . . . . . Construction Impeded . | . . . . . . . Haulers Reinforced . | . . . . . . . Stealth | -11 -10 -10 -9 -9 -8 -8 --------- Run | Scr Mat Min Mat Min Mat Gar Distress Signals 1 | . . . 1 . . . Communications Jammed . | . . . . . . . Distress Signals . | . . . . . . . Times Spotted 74 | . 2 . 11 14 14 33 Peak Tracking Total 26 | . 1 . 5 11 10 26 Tactical Retreats 8 | . . . . 2 3 3 Traps | -11 -10 -10 -9 -9 -8 -8 ------- Run | Scr Mat Min Mat Min Mat Gar Traps Triggered . | . . . . . . . Indirectly . | . . . . . . . Trap Hack Attempts . | . . . . . . . Triggered . | . . . . . . . Disarmed . | . . . . . . . Reprogrammed . | . . . . . . . Reused . | . . . . . . . Traps Extracted . | . . . . . . . Installed . | . . . . . . . Triggered . | . . . . . . . Machines | -11 -10 -10 -9 -9 -8 -8 ---------- Run | Scr Mat Min Mat Min Mat Gar Machines Disabled . | . . . . . . . Max in Single Turn . | . . . . . . . Machines Sabotaged . | . . . . . . . Garrisons Compromised . | . . . . . . . Overloaded Fab Kills . | . . . . . . . Fab Network Shutdowns . | . . . . . . . Hacking | -11 -10 -10 -9 -9 -8 -8 --------- Run | Scr Mat Min Mat Min Mat Gar Machines Accessed 5 | . 1 . 2 . 2 . Terminals 4 | . 1 . 2 . 1 . Fabricators . | . . . . . . . Repair Stations . | . . . . . . . Recycling Units . | . . . . . . . Scanalyzers . | . . . . . . . Garrison Access 1 | . . . . . 1 . Total Hacks 11 | . 5 . 4 . 2 . Successful 8 | . 3 . 3 . 2 . Failed 3 | . 2 . 1 . . . Catastrophic . | . . . . . . . Database Lockouts . | . . . . . . . Manual 1 | . . . . . 1 . Terminals 10 | . 5 . 4 . 1 . Fabricators . | . . . . . . . Repair Stations . | . . . . . . . Recycling Units . | . . . . . . . Scanalyzers . | . . . . . . . Garrison Access 1 | . . . . . 1 . Terminal Hacks 6 | . 3 . 3 . . . Prototype ID Bank 1 | . . . 1 . . . Branch Access Points 1 | . 1 . . . . . Emergency Access Points 1 | . . . 1 . . . Dispatch Records 1 | . . . 1 . . . Hauler Manifests 1 | . 1 . . . . . Registered Components 1 | . 1 . . . . . Fabricator Hacks . | . . . . . . . Repair Station Hacks . | . . . . . . . Recycling Unit Hacks . | . . . . . . . Scanalyzer . | . . . . . . . Garrison Access Hacks 1 | . . . . . 1 . Unlock Access 1 | . . . . . 1 . Unauthorized Hacks 1 | . . . . . 1 . Terminals 1 | . . . . . 1 . Assimilate 1 | . . . . . 1 . Fabricators . | . . . . . . . Repair Stations . | . . . . . . . Recycling Units . | . . . . . . . Scanalyzers . | . . . . . . . Garrison Access . | . . . . . . . Data Cores Recovered . | . . . . . . . Used . | . . . . . . . Hacking Detections 4 | . 1 . 2 . 1 . Full Trace Events . | . . . . . . . Feedback Events . | . . . . . . . Feedback Blocked . | . . . . . . . Robot Schematics Acquired . | . . . . . . . Robots Built . | . . . . . . . Matter . | . . . . . . . Time . | . . . . . . . Total Robot Build Rating . | . . . . . . . Part Schematics Acquired . | . . . . . . . Parts Built . | . . . . . . . Matter . | . . . . . . . Time . | . . . . . . . Total Part Build Rating . | . . . . . . . Parts Repaired . | . . . . . . . Time . | . . . . . . . Parts Recycled . | . . . . . . . Recycled Matter . | . . . . . . . Retrieved Matter . | . . . . . . . Retrieved Components . | . . . . . . . Parts Scanalyzed . | . . . . . . . Part Schematics Acquired . | . . . . . . . Parts Damaged . | . . . . . . . Bothacking | -11 -10 -10 -9 -9 -8 -8 ------------ Run | Scr Mat Min Mat Min Mat Gar Used RIF Installer . | . . . . . . . Robots Hacked . | . . . . . . . Non-combat . | . . . . . . . Combat . | . . . . . . . Robot Hacks Applied . | . . . . . . . Relay Couplers Released . | . . . . . . . Robots Rewired . | . . . . . . . Allies Hacked . | . . . . . . . Hacks Repelled . | . . . . . . . Allies | -11 -10 -10 -9 -9 -8 -8 -------- Run | Scr Mat Min Mat Min Mat Gar Total Allies 4 | . . 3 . . 1 . Largest Group 3 | . . 3 3 . 1 1 Highest-Rated Group 40 | . . 40 40 . 10 10 Highest-Rated Ally 16 | . . 16 16 . 10 10 Total Orders . | . . . . . . . Ally Attacks 24 | . . . 24 . . . Total Damage 227 | . . . 227 . . . Kills 4 | . . . 4 . . . Allies Corrupted . | . . . . . . . Allies Melted . | . . . . . . . Intel | -11 -10 -10 -9 -9 -8 -8 ------- Run | Scr Mat Min Mat Min Mat Gar Robot Analysis Total . | . . . . . . . Derelict Logs Recovered 4 | . . 1 . 3 . . Drone Launches . | . . . . . . . Drone Recoveries . | . . . . . . . Exploration | -11 -10 -10 -9 -9 -8 -8 ------------- Run | Scr Mat Min Mat Min Mat Gar Turns Passed 1482 | 97 312 309 494 100 90 80 Spaces Moved 1388 | 57 221 252 213 237 184 224 Core 12 | 12 . . . . . . Treads 91 | 45 46 . . . . . Legs 630 | . 175 252 203 . . . Wheels . | . . . . . . . Hover . | . . . . . . . Flight 655 | . . . 10 237 184 224 Fastest Speed 32 | 50 120 120 102 32 32 32 Average Speed 82 | 142 128 120 120 34 33 32 Slowest Speed 175 | 160 160 120 175 102 102 32 Overloaded Moves . | . . . . . . . Propulsion Burnouts . | . . . . . . . Robots Hopped 10 | . . . . 1 2 7 Cave-ins Triggered . | . . . . . . . Exploration Rate (%) 36 | 5 26 58 22 74 24 48 Regions Visited 6 Branch Regions 2 Pre-discovered Areas 2 | . . . . 2 . . Known Exits Taken 2 | . 1 . . . 1 . Unknown Exits Taken 4 | 1 . 1 1 1 . . Scrap Searched 1 | . . . . 1 . . Spaces Dug . | . . . . . . . Terrain Destroyed . | . . . . . . . Melee . | . . . . . . . Projectile . | . . . . . . . AOE . | . . . . . . . Actions | -11 -10 -10 -9 -9 -8 -8 --------- Run | Scr Mat Min Mat Min Mat Gar Total 1664 | 70 233 256 421 250 210 224 Wait 193 | . . 4 175 3 3 8 Move 1362 | 56 220 251 212 234 179 210 Hop 9 | . . . . 1 2 6 Pick Up 14 | 7 1 . 2 1 3 . Fast Attach 18 | 5 . . 8 2 3 . Attach 3 | 1 . . . 1 1 . Detach 5 | . . . . 1 4 . Swap 9 | 1 2 . 2 2 2 . Drop 21 | . 2 . 8 3 8 . Fire 30 | . 8 1 14 2 5 . Melee . | . . . . . . . Ram . | . . . . . . . Kick . | . . . . . . . Crush . | . . . . . . . Escape Stasis . | . . . . . . . Rewire . | . . . . . . . Trap . | . . . . . . . Miscellaneous . | . . . . . . . Route ------- -11/Scrapyard -10/Materials -10/Mines -9/Materials -9/Mines (discovered 2 exits: *Mat / [*Zio]) -8/Materials (discovered 2 exits: [*Fac] / Gar) -8/Garrison (discovered 1 exit: [*Mat]) History --------- Turn | Location | Event 22 | -11/Scrapyard | Discovered new exit (range 15) 98 | -11/Scrapyard | Entered Materials 197 | -10/Materials | Discovered new exit (range 8) 302 | -10/Materials | Build established: Mutant 361 | -10/Materials | Identified exit to Mines 410 | -10/Materials | Entered Mines 590 | -10/Mines | Discovered new exit (range 15) 605 | -10/Mines | Learned Materials garrison access intel 695 | -10/Mines | Assisted by bots powering up and referring to "LRC-V3" 719 | -10/Mines | Entered Materials 719 | -9/Materials | Accompanied by 3 allies 719 | -9/Materials | Evolved 2 slots: Utility x2 1107 | -9/Materials | Discovered new exit (range 13) 1213 | -9/Materials | Entered Mines 1223 | -9/Mines | Assembled infested the area 1228 | -9/Mines | Assisted by a Guerilla fighting off Assembled 1237 | -9/Mines | Learned location of Zion (-7) 1241 | -9/Mines | Learned Materials emergency access door positions 1251 | -9/Mines | Learned location of Recycling (-7) 1271 | -9/Mines | Joined a pair of Derelicts in attacking an 0b10 outpost 1297 | -9/Mines | A Derelict revealed a hidden shortcut to a safe place 1310 | -9/Mines | Discovered new exit (range 8) 1313 | -9/Mines | Entered Materials 1313 | -8/Materials | Evolved 2 slots: Propulsion x2 1315 | -8/Materials | Loaded intel: 1 garrison access location 1375 | -8/Materials | Discovered new exit (range 3) 1402 | -8/Materials | Identified exit to Garrison 1403 | -8/Materials | Entered Garrison 1403 | -8/Garrison | Accompanied by 1 ally 1418 | -8/Garrison | Triggered checkpoint 1424 | -8/Garrison | Triggered checkpoint 1428 | -8/Garrison | Triggered checkpoint 1435 | -8/Garrison | Discovered new exit (range 12) 1439 | -8/Garrison | Attempted to access garrison exit controls, blocked by remote lockdown 1460 | -8/Garrison | Build established: Sprinter 1478 | -8/Garrison | Triggered checkpoint 1483 | -8/Garrison | Self-destructed Last Messages --------------- GOAL=ESCAPE 01407_ Technician 3a reveals location of phase wall. 01414_ Technician 3a reveals location of hidden door. 01414_ Technician 3a reveals location of phase wall. 01414_ Technician 3a reveals location of Stasis Trap. 01418_ Beams of light sweep through the air. An alarm sounds. 01418_ Technician 3a reveals location of phase wall. 01424_ Technician 3a reveals location of Stasis Trap. 01424_ C-30 ARC bursts open, deploying its payload. 01424_ S-10 Pest unfolds itself. 01424_ Technician 3a reveals location of phase wall. 01426_ Technician 3a reveals location of Stasis Trap. 01430_ Technician 3a reveals location of phase wall. 01435_ EXIT=FOUND 01439_ Attempting to access garrison exit controls... 01439_ Remote lockdown engaged. 01446_ Lgt. Assault Rifle destroyed. 01458_ Ion Engine destroyed. 01478_ Beams of light sweep through the air. An alarm sounds. Garrison Door opened remotely. Map ----- +----------------------------------------------------+ | ?????????????????????????????????????????? | | ?????????????????????????????????????????? | | ?????????????????????????????????????????? | | ?????????????????????????????????????????? | | ?????????????????????????????????????????? | | ?????????????????????????????????????????? | | ?????????????????????????????????????????? | | ?????????????????????????????????????????? | | ?????????????????????????????????????????? | | ?????????????????????????????????????????? | | ?????????????????????????????????????????? | | ?????????????????????????????????????????? | | ?????????????????????????????????????????? | | ?????????????????????????????????????????? | | ?????????????????????????????????????????? | | ?????????????????????????????????????????? | | ?????????????????????????????????????????? | | ?????????????????????????????????? ?????? | | ?????????????????????????????????? ?????? | | ?????????????????????????????????? ?????? | | ????????????????###??????????????# #????? | | ????????????????# ?????????????? ????? | | ????????????????# #??????????????# ????? | | ????????????????# #??????????????# #????? | | ??????????????### #??????????????# #????? | | ??????????????#"#@#??????????????# #????? | | ??????????????#" #??????????????# #????? | | ??????????????#" #??????????????# #????? | | ??????????????#" #??????????????# #????? | | ??????????????#"# #??????????????# #????? | | ??????????????###s#?#####????????# #????? | | ????????????????#s#?# #????????# ###### | | ????????????????# ### ########## | | ????????????????# | | ????????????????########################## | | ?????????????????????????????????????????? | | ?????????????????????????????????????????? | | ?????????????????????????????????????????? | | ?????????????????????????????????????????? | | ?????????????????????????????????????????? | | ?????????????????????????????????????????? | | ?????????????????????????????????????????? | | ?????????????????????????????????????????? | | ????????????????????????????????????????? | | ?????????????????????????????????????????# | | ?????????????????????????????????????????? | | ?????????????????????????????????????????? | | ?????????????????????????????????????????? | | ?????????????????????????????????????????? | | ?????????????????????????????????????????? | +----------------------------------------------------+ Best States ------------- Heat Dissipation 48 Energy Generation 10 Energy Capacity 250 Matter Stores 300 Matter Capacity 300 Sight Range 18 Terrain Scan Density 10 Reclamation Efficiency 10 Evasion (%) 63 Targeting Accuracy 6 Recoil Reduction 2 Item Schematics ----------------- None Robot Schematics ------------------ None Fabricated ------------ Nothing Alien Tech Used ----------------- None Achievements -------------- Slippery One Challenges ------------ None Game ------ Seed AlertScatterDriver Manual? 0 Play Time 00:33:22 Cumulative 19.8 hours Start 2020.07.04 @ 19:21:39 End 2020.07.04 @ 20:01:03 Sessions 1 Manual Loads 0 Difficulty Rogue Special Mode None Game No. 33 Rogue 33 Adventurer 0 Explorer 0 Win Type - Total 0 Types 0/0/0/0/0/0/0 Lore% 27 Gallery% 30 Achievement% 29 Wizard Run 0 Options --------- ASCII 0 Keyboard 0 Movement Numpad Keybinds 0 Fullscreen 2 Font 16/Terminus Map View 76x50 Tactical HUD 1 Map Filters NONE Filters NONE Steam 1 RUN: becbd583-a879-43d3-8d8e-2566c3941215